Cogmind - Beta 10.2 @@@ ROGUE MODE // 2021.04.06 @ 18:07:05 Player: ChromeKnight Result: Destroyed by G-50 Soldier with Heavy Laser Performance ------------- Evolutions (2) 1000 Regions Visited (5) 1000 Robots Destroyed (23) 115 Value Destroyed (304) 304 Prototype IDs (24) 480 Alien Tech Used (0) 0 Bonus (300) 300 TOTAL SCORE: 3199 Bonus ------- Aligned with FarCom 300 Cogmind --------- Core Integrity 0/550 Matter 280/300 Energy 100/100 System Corruption 0% Temperature Cool (9) Movement Core (300) Ox5 Location -8/Materials Parts ------- > --- POWER (2) -------- (None) > --- PROPULSION (4) --- (None) > --- UTILITY (3) ------ Large Storage Unit > --- WEAPON (2) ------- (None) > --- INVENTORY (10) --- Compact Matter Pod (150) Improved Terrain Scanner Transport Network Coupler Hacking Suite System Shield Supersonic Drone Bay (1/1) Datajack Peak State ------------ > --- POWER ------------ Light Ion Engine > --- PROPULSION ------- Improved Hover Unit Improved Hover Unit > --- UTILITY ---------- Small Storage Unit Supersonic Drone Bay > --- WEAPON ----------- Spread Laser Light Assault Rifle > --- INVENTORY -------- Compact Matter Pod Hacking Suite Mini Grenade Launcher Datajack [Rating: 17] Favorites ----------- Power Light Ion Engine Engine Light Ion Engine Propulsion Improved Hover Unit Leg Aluminum Leg Wheel Wheel Hover Unit Improved Hover Unit Utility Small Storage Unit Device Supersonic Drone Bay Storage Small Storage Unit Weapon Spread Laser Energy Gun Spread Laser Ballistic Gun Light Assault Rifle Launcher Mini Grenade Launcher Build | -11 -10 -10 -10 -9 -8 ------- Run | Scr Mat Min Exi Min Mat Slots Evolved 4 | . . . . . 4 Power 1 | . . . . . 1 Propulsion 2 | . . . . . 2 Utility 1 | . . . . . 1 Weapon . | . . . . . . Parts Attached 26 | 6 4 2 1 5 8 Power 5 | 1 . 1 1 1 1 Engine 5 | 1 . 1 1 1 1 Core . | . . . . . . Reactor . | . . . . . . Propulsion 7 | 2 2 . . 2 1 Treads . | . . . . . . Leg 1 | . . . . . 1 Wheel 2 | 2 . . . . . Hover 4 | . 2 . . 2 . Flight . | . . . . . . Utility 3 | 1 . . . . 2 Device 1 | . . . . . 1 Storage 2 | 1 . . . . 1 Processor . | . . . . . . Hackware . | . . . . . . Protection . | . . . . . . Artifact . | . . . . . . Weapon 11 | 2 2 1 . 2 4 Energy Gun 8 | 1 2 1 . 1 3 Energy Cannon . | . . . . . . Ballistic Gun 2 | 1 . . . 1 . Ballistic Cannon . | . . . . . . Launcher 1 | . . . . . 1 Special Weapon . | . . . . . . Impact Weapon . | . . . . . . Slashing Weapon . | . . . . . . Piercing Weapon . | . . . . . . Special Melee Weapon . | . . . . . . Unidentified Prototypes 1 | . . 1 . . . Parts Lost 15 | . . 1 . 5 9 Power 3 | . . . . 1 2 Propulsion 5 | . . . . 2 3 Utility 1 | . . 1 . . . Weapon 6 | . . . . 2 4 Highest Loss Streak 9 | . . 1 . 5 9 Average Slot Usage (%) 73 | . 83 85 85 77 45 Engine 12 | . 14 14 14 12 6 Wheel 3 | . 23 . . . . Hover 20 | . 4 28 28 24 13 Storage 12 | . 14 14 14 14 9 Energy Gun 19 | . 17 28 28 14 11 Ballistic Gun 4 | . 9 . . 11 2 Naked Turns . | . . . . . . Heaviest Build 27 | 11 15 15 13 13 27 Greatest Support 20 | 20 20 16 16 16 16 Greatest Overweight (x) 6 | . 1 . . 3 6 Average Overweight (x) . | . . . . . 1 Largest Inventory Capacity 12 | 6 6 6 6 6 12 Average Capacity 6 | 5 6 6 6 6 9 Most Carried 9 | 1 6 6 6 6 9 Average Carried 5 | . 3 5 5 4 7 Final Capacity 10 | 6 6 6 6 6 10 Final Carried 7 | 1 6 6 6 5 7 Class Distribution -------------------- 100% | Mutant Dominant Class ---------------- Mutant | -10/Materials Mutant | -10/Mines Mutant | -10/Exiles Mutant | -9/Mines Mutant | -8/Materials Resources | -11 -10 -10 -10 -9 -8 ----------- Run | Scr Mat Min Exi Min Mat Matter Collected 495 | 216 91 55 . 96 37 Remotely . | . . . . . . Salvage Created 378 | . 83 95 . 83 117 Parts 38 | . 5 10 . 12 11 Haulers Intercepted 1 | . . . . . 1 Recyclers Shooed . | . . . . . . Parts Field Recycled . | . . . . . . Retrieved Matter . | . . . . . . Parts Self-Destructed . | . . . . . . Prevented . | . . . . . . Kills | -11 -10 -10 -10 -9 -8 ------- Run | Scr Mat Min Exi Min Mat Combat Hostiles Destroyed 20 | . 2 7 . 7 4 Guns 17 | . 2 7 . 7 1 AOE 3 | . . . . . 3 Classes Destroyed 5 | . 2 2 . . 1 Worker 1 | . . 1 . . . Hauler 1 | . . . . . 1 Operator 1 | . 1 . . . . Swarmer 17 | . . 7 . 7 3 Grunt 3 | . 2 . . . 1 Best Kill Streak 4 | . 2 3 . 4 4 Combat Bots Only 4 | . 2 3 . 4 4 Max Kills in Single Turn 3 | . 1 1 . 1 3 Gunslinging . | . . . . . . Exploded 3 | . . . . . 3 Melee . | . . . . . . Uniques/NPCs Destroyed . | . . . . . . Combat | -11 -10 -10 -10 -9 -8 -------- Run | Scr Mat Min Exi Min Mat Damage Taken 1789 | . 157 219 . 393 1020 Core 789 | . 43 51 . 131 564 Absorbed by Shields . | . . . . . . Core Remaining (%) 55 | 100 . . . 10 . Volleys Fired 52 | . 9 16 . 22 5 Largest 2 | . 2 2 . 2 2 Hottest 130 | . 130 130 . 130 93 Shots Fired 98 | . 18 32 . 39 9 Gun 97 | . 18 32 . 39 8 Cannon . | . . . . . . Launcher 1 | . . . . . 1 Special . | . . . . . . Kinetic 24 | . 7 . . 14 3 Thermal 73 | . 11 32 . 25 5 Explosive 1 | . . . . . 1 Electromagnetic . | . . . . . . Robot Hit Streak 9 | . 9 8 . 6 4 Robot Miss Streak 8 | . 4 8 . 8 2 Penetration Max . | . . . . . . Secondary Targets 1 | . . 1 . . . Max Gunslinging Chain 1 | . . 1 . . . Shots Hit Robots 77 | . 11 27 . 31 8 Core Hits 60 | . 9 21 . 18 12 Critical Hits 1 | . 1 . . . . Critical Kills . | . . . . . . Critical Parts Destroyed 1 | . 1 . . . . Melee Attacks . | . . . . . . Impact . | . . . . . . Slashing . | . . . . . . Piercing . | . . . . . . Sneak Attacks . | . . . . . . Combat Hostiles . | . . . . . . Follow-up Attacks . | . . . . . . Damage Inflicted 813 | . 143 181 . 174 315 Guns 579 | . 143 181 . 174 81 Cannons . | . . . . . . Explosions 213 | . . . . . 213 Melee . | . . . . . . Ramming 21 | . . . . . 21 Kinetic 82 | . 47 . . 26 9 Thermal 497 | . 96 181 . 148 72 Explosive 213 | . . . . . 213 Electromagnetic . | . . . . . . Impact . | . . . . . . Slashing . | . . . . . . Piercing . | . . . . . . Highest Corruption . | . . . . . . Average Corruption . | . . . . . . Corruption Purged . | . . . . . . Overload Shots . | . . . . . . Overflow Damage 11 | . . . . . 11 Projectiles . | . . . . . . Explosions 11 | . . . . . 11 Melee . | . . . . . . Knockbacks . | . . . . . . Impact . | . . . . . . Kinetic . | . . . . . . Secondary . | . . . . . . Self-Inflicted Damage 57 | . . . . . 57 Shots 1 | . . . . . 1 Rammed 6 | . . . . . 6 Targets Rammed 6 | . . . . . 6 Kicked . | . . . . . . Crushed . | . . . . . . Highest Temperature 492 | . 144 432 . 492 60 Average Temperature 165 | . 60 171 . 229 25 Received Heat Transfer 435 | . 84 . . . 351 Effects 10 | . . 3 . 7 . Shutdowns 2 | . . 1 . 1 . Energy Bleed 2 | . . . . 2 . Interference 2 | . . . . 2 . Matter Decay 1 | . . 1 . . . Damage (minor) 3 | . . 1 . 2 . Siege Activations . | . . . . . . Robots Corrupted . | . . . . . . Combat Hostiles . | . . . . . . Parts Fried . | . . . . . . Impact Corruptions . | . . . . . . Robots Melted . | . . . . . . Combat Hostiles . | . . . . . . Parts Melted 1 | . . 1 . . . Heat Transferred 697 | . 170 225 . 190 112 Parts Sabotaged . | . . . . . . Parts Stolen . | . . . . . . Parts Stripped . | . . . . . . Power Chain Reactions . | . . . . . . Missiles Intercepted . | . . . . . . Alert | -11 -10 -10 -10 -9 -8 ------- Run | Scr Mat Min Exi Min Mat Peak Influence 224 | . 100 224 . 130 112 Initial 50 | . . 39 . . 50 Average 70 | . 45 139 . 50 59 Maximum Alert Level 1 | . . 1 . . . Low Security (%) 95 | 100 100 80 . 100 100 Level 1 4 | . . 19 . . . Level 2 . | . . . . . . Level 3 . | . . . . . . Level 4 . | . . . . . . Level 5 . | . . . . . . High Security . | . . . . . . Max Security . | . . . . . . Squads Dispatched 3 | . 2 . . . 1 Investigation . | . . . . . . Extermination . | . . . . . . Reinforcement 2 | . 2 . . . . Assault . | . . . . . . Garrison 1 | . . . . . 1 Intercept . | . . . . . . Construction Impeded . | . . . . . . Haulers Reinforced . | . . . . . . Stealth | -11 -10 -10 -10 -9 -8 --------- Run | Scr Mat Min Exi Min Mat Distress Signals 1 | . . . . . 1 Communications Jammed . | . . . . . . Distress Signals . | . . . . . . Times Spotted 38 | . 8 9 . 8 13 Peak Tracking Total 8 | . 5 3 . 4 8 Tactical Retreats 4 | . 2 1 . . 1 Traps | -11 -10 -10 -10 -9 -8 ------- Run | Scr Mat Min Exi Min Mat Traps Triggered . | . . . . . . Indirectly . | . . . . . . Trap Hack Attempts . | . . . . . . Triggered . | . . . . . . Disarmed . | . . . . . . Reprogrammed . | . . . . . . Reused . | . . . . . . Traps Extracted . | . . . . . . Installed . | . . . . . . Triggered . | . . . . . . Machines | -11 -10 -10 -10 -9 -8 ---------- Run | Scr Mat Min Exi Min Mat Machines Disabled . | . . . . . . Max in Single Turn . | . . . . . . Machines Sabotaged . | . . . . . . Garrisons Compromised . | . . . . . . Overloaded Fab Kills . | . . . . . . Fab Network Shutdowns . | . . . . . . Hacking | -11 -10 -10 -10 -9 -8 --------- Run | Scr Mat Min Exi Min Mat Machines Accessed 3 | . 1 . 2 . . Terminals 1 | . 1 . . . . Fabricators . | . . . . . . Repair Stations . | . . . . . . Recycling Units . | . . . . . . Scanalyzers . | . . . . . . Garrison Access . | . . . . . . Total Hacks 5 | . 1 . 4 . . Successful 4 | . . . 4 . . Failed 1 | . 1 . . . . Catastrophic 1 | . 1 . . . . Database Lockouts . | . . . . . . Manual 2 | . 1 . 1 . . Terminals 1 | . 1 . . . . Fabricators . | . . . . . . Repair Stations . | . . . . . . Recycling Units . | . . . . . . Scanalyzers . | . . . . . . Garrison Access . | . . . . . . Terminal Hacks 4 | . . . 4 . . Record 3 | . . . 3 . . EX-Prototype ID Bank 1 | . . . 1 . . Fabricator Hacks . | . . . . . . Repair Station Hacks . | . . . . . . Recycling Unit Hacks . | . . . . . . Scanalyzer . | . . . . . . Garrison Access Hacks . | . . . . . . Unauthorized Hacks . | . . . . . . Terminals . | . . . . . . Fabricators . | . . . . . . Repair Stations . | . . . . . . Recycling Units . | . . . . . . Scanalyzers . | . . . . . . Garrison Access . | . . . . . . Data Cores Recovered . | . . . . . . Used . | . . . . . . Hacking Detections 1 | . 1 . . . . Full Trace Events . | . . . . . . Feedback Events . | . . . . . . Feedback Blocked . | . . . . . . Robot Schematics Acquired . | . . . . . . Robots Built . | . . . . . . Matter . | . . . . . . Time . | . . . . . . Total Robot Build Rating . | . . . . . . Part Schematics Acquired . | . . . . . . Parts Built . | . . . . . . Matter . | . . . . . . Time . | . . . . . . Total Part Build Rating . | . . . . . . Parts Repaired . | . . . . . . Time . | . . . . . . Parts Recycled . | . . . . . . Recycled Matter . | . . . . . . Retrieved Matter . | . . . . . . Retrieved Components . | . . . . . . Parts Scanalyzed . | . . . . . . Part Schematics Acquired . | . . . . . . Parts Damaged . | . . . . . . Bothacking | -11 -10 -10 -10 -9 -8 ------------ Run | Scr Mat Min Exi Min Mat Used RIF Installer . | . . . . . . Robots Hacked . | . . . . . . Non-combat . | . . . . . . Combat . | . . . . . . Robot Hacks Applied . | . . . . . . Relay Couplers Released . | . . . . . . Robots Rewired . | . . . . . . Allies Hacked . | . . . . . . Hacks Repelled . | . . . . . . Allies | -11 -10 -10 -10 -9 -8 -------- Run | Scr Mat Min Exi Min Mat Total Allies . | . . . . . . Largest Group . | . . . . . . Highest-Rated Group . | . . . . . . Highest-Rated Ally . | . . . . . . Total Orders 1 | . . . . . 1 EXPLORE 1 | . . . . . 1 Ally Attacks . | . . . . . . Total Damage . | . . . . . . Kills . | . . . . . . Allies Corrupted . | . . . . . . Allies Melted . | . . . . . . Intel | -11 -10 -10 -10 -9 -8 ------- Run | Scr Mat Min Exi Min Mat Robot Analysis Total . | . . . . . . Derelict Logs Recovered 1 | . . 1 . . . Drone Launches 1 | . . . . . 1 Drone Recoveries 1 | . . . . . 1 Exploration | -11 -10 -10 -10 -9 -8 ------------- Run | Scr Mat Min Exi Min Mat Turns Passed 960 | 36 122 186 177 221 218 Spaces Moved 1021 | 34 111 223 310 248 95 Core 23 | 2 . . . 11 10 Treads . | . . . . . . Legs 1 | . . . . . 1 Wheels 112 | 32 80 . . . . Hover 885 | . 31 223 310 237 84 Flight . | . . . . . . Fastest Speed 50 | 50 56 56 56 56 56 Average Speed 66 | 78 73 56 56 61 127 Slowest Speed 350 | 80 120 56 56 200 350 Overloaded Moves . | . . . . . . Propulsion Burnouts . | . . . . . . Robots Hopped . | . . . . . . Cave-ins Triggered . | . . . . . . Exploration Rate (%) 35 | 4 29 53 61 34 33 Regions Visited 5 Branch Regions 3 Pre-discovered Areas 1 | . . . . 1 . Known Exits Taken . | . . . . . . Unknown Exits Taken 5 | 1 1 1 1 1 . Scrap Searched 2 | . . . . 2 . Spaces Dug . | . . . . . . Terrain Destroyed 9 | . . . . . 9 Melee . | . . . . . . Projectile . | . . . . . . AOE 9 | . . . . . 9 Terrain Rammed . | . . . . . . Walls Destroyed . | . . . . . . Machines Disabled . | . . . . . . Actions | -11 -10 -10 -10 -9 -8 --------- Run | Scr Mat Min Exi Min Mat Total 1195 | 40 134 252 312 279 178 Wait 67 | . . 6 . 3 58 Move 1016 | 33 110 222 309 247 95 Hop . | . . . . . . Pick Up 15 | 1 6 2 1 2 3 Fast Attach 16 | 6 3 1 . 2 4 Attach 6 | . . . . 3 3 Detach 1 | . . . . . 1 Swap 5 | . 1 2 1 . 1 Drop 11 | . 5 3 1 . 2 Fire 52 | . 9 16 . 22 5 Melee . | . . . . . . Ram 6 | . . . . . 6 Kick . | . . . . . . Crush . | . . . . . . Escape Stasis . | . . . . . . Rewire . | . . . . . . Trap . | . . . . . . Miscellaneous . | . . . . . . Route ------- -11/Scrapyard -10/Materials -10/Mines (discovered 2 exits: [*Mat] / *Exi) -10/Exiles -9/Mines (discovered 2 exits: [*Mat x2]) -8/Materials (discovered 2 exits: [*Fac x2]) History --------- Turn | Location | Event 17 | -11/Scrapyard | Discovered new exit (range 15) 37 | -11/Scrapyard | Entered Materials 89 | -10/Materials | Discovered new exit (range 7) 159 | -10/Materials | Entered Mines 226 | -10/Mines | Found a damaged Exp. Sensor Array with a note attached 227 | -10/Mines | Found Prototype Device 227 | -10/Mines | Identified Exp. Sensor Array 264 | -10/Mines | Discovered new exit (range 6) 305 | -10/Mines | Build established: Mutant 343 | -10/Mines | Deemed a non-threat by the Exiles lab entrance 343 | -10/Mines | Discovered new exit (range 5) 345 | -10/Mines | Entered Exiles 360 | -10/Exiles | Met 8R-AWN 369 | -10/Exiles | Met EX-HEX 385 | -10/Exiles | Met EX-BIN 447 | -10/Exiles | Aligned with FarCom system 448 | -10/Exiles | Given EX-Vault access code 464 | -10/Exiles | Opened EX-Vault 470 | -10/Exiles | Found Supersonic Drone Bay 481 | -10/Exiles | Warned to stay clear of 0b10 Research branches 497 | -10/Exiles | Met EX-DEC 517 | -10/Exiles | Discovered new exit (range 10) 522 | -10/Exiles | Left Exiles lab with Supersonic Drone Bay 522 | -10/Exiles | Entered Mines 538 | -9/Mines | Core integrity fell below 50% 573 | -9/Mines | Lost 5 parts (1p2n2w) 624 | -9/Mines | Learned location of Storage (-7) 664 | -9/Mines | Discovered new exit (range 15) 673 | -9/Mines | Discovered new exit (range 13) 675 | -9/Mines | Assembled infested the area 729 | -9/Mines | Core integrity fell below 20% 743 | -9/Mines | Entered Materials 743 | -8/Materials | Evolved 4 slots: Power x1, Propulsion x2, Utility x1 766 | -8/Materials | Discovered new exit (range 57) 767 | -8/Materials | Discovered new exit (range 72) 799 | -8/Materials | Garrison activated, responded to threat 943 | -8/Materials | Core integrity fell below 50% 953 | -8/Materials | Core integrity fell below 20% 961 | -8/Materials | Destroyed by G-50 Soldier with Heavy Laser Last Messages --------------- 00928_ S-10 Pest destroyed. 00932_ Spread Laser destroyed. 00933_ Acquired Aluminum Leg. 00933_ R-06 Scavenger collects Flight Unit. 00935_ U-05 Engineer lays Concrete. 00936_ Aluminum Leg destroyed. 00936_ U-05 Engineer lays Concrete. 00936_ Acquired Lgt. Ion Engine. 00936_ R-06 Scavenger collects Flight Unit. 00938_ U-05 Engineer lays Concrete. 00939_ R-06 Scavenger collects Particle Gun. 00941_ U-05 Engineer lays Concrete. 00944_ Lgt. Ion Engine destroyed. 00945_ U-05 Engineer lays Concrete. 00949_ The unstable cave ceiling collapses. 00949_ G-47 Trooper crushed by falling debris. 00949_ G-47 Trooper destroyed. 00949_ 7 Matter crushed. 00949_ U-05 Engineer lays Concrete. 00955_ U-05 Engineer builds a Wall. Map ----- +----------------------------------------------------+ | ??????????????????????????# ???????# < #?????# | | ??????????????????????????# ???????# #?????# | | ??????????????????????????# ???????+ #?????# | | ??????????????????????????# ???????# ####### | | ??????????????????????????# #??????# | | ??????????????????????????# #??????# | | ??????????????????????????# #??????# | | ??????????????????????????# #??????# ######## | | ??????????????????????????# #??????# #??????# | | ??????????????????????????# #??????# #??????# | | ??????????????????????????# #??????# #??????# | | ??????????????????????????# #??????# #??????# | | ??????????????????????????# #??????# #??????# | | ??????????????????????????# #??????# #??????# | | ?????#+#####????########### #??????# #??????# | | ?????# #????# ## ##?????# #??????# | | ?????# #????# """" # ####### #??????# | | ?????# #????# """" # #????###+ | | ?????# #??### """" / #????# | | ?????# #??# # #????# | | ?????# #???# " # ###+#######????# | | ?????# #???# "" ## ## #????# " | | ?????# #???# % ## ## #????# S" | | ?????# #???##% g ## ## #????# "" | | ?????# ##### %=# ###### ## #???##### | | ?????# ## % # Y @ ## #???# | | ###### ## " #ggg ## #???# | | ###+#### """%+ g ## #???# | | # """%######## ## #???# # | | / """%#??????# ############???# ? | | # ""%#??????# #??????????????# ?? | | ######## """%#??????+ #??????????????# ??? | | # ######### "" #??????# ?????????????? ???? | | # # ! ## "" #??????# ???????Y???? ????? | | # # ## " #??????# ?????????? ?????? | | # + """ ## #??????########????????#??????? | | # # """ ## #?????????????????????????????? | | # # """ ## #?????????????????????????????? | | # #[ #########?????????????????????????????? | | ########?????????????????????????????????????? | | #????????????????????????????????????????????? | | #????????????????????????????????????????????? | | +####????????????????????????????????????????????? | | #????????????????????????????????????????????? | | #????????????????????????????????????????????? | | #????????????????????????????????????????????? | | +????????????????????????????????????????????? | | #????????????????????????????????????????????? | | #????????????????????????????????????????????? | | #####????????????????????????????????????????????? | +----------------------------------------------------+ Best States ------------- Heat Dissipation 31 Energy Generation 10 Energy Capacity 250 Matter Stores 300 Matter Capacity 300 Sight Range 16 Terrain Scan Density 10 Evasion (%) 53 Item Schematics ----------------- None Robot Schematics ------------------ None Fabricated ------------ Nothing Alien Tech Used ----------------- None Achievements -------------- None Challenges ------------ None Game ------ Seed NetworkCannonStabilizer Manual? 0 Play Time 00:12:06 Cumulative 123.3 hours Start 2021.04.06 @ 15:44:02 End 2021.04.06 @ 18:07:05 Sessions 1 Manual Loads 0 Difficulty Rogue Special Mode None Game No. 286 Rogue 133 Adventurer 148 Explorer 5 Win Type - Total 3 Types 3/0/0/0/0/0/0/0/0 Lore% 64 Gallery% 72 Achievement% 57 Wizard Run 0 Options --------- ASCII 0 Keyboard 0 Movement Numpad Keybinds 0 Fullscreen 1 Font 14/X11 Map View 84x54 Tactical HUD 1 Map Filters NONE Filters NONE Steam 1 RUN: 63aa5a60-70e9-4af0-85ac-69674c8e903f